Cogmind - Beta 15 @@@ ROGUE MODE // 2025.06.29 @ 15:01:19 Player: worthless slave Result: Destroyed by B-75 Beast with Heavy Plasma Cannon Performance ------------- Evolutions (3) 1500 Regions Visited (9) 1800 Robots Destroyed (80) 400 Value Destroyed (2821) 2821 Prototype IDs (15) 300 Alien Tech Used (0) 0 Bonus (522) 522 TOTAL SCORE: 7343 Bonus ------- High Alert Combat Kills 45 Follower Combat Kills 177 Met Data Miner 300 Cogmind --------- Core Integrity 0/700 Matter 300/300 Energy 99/100 System Corruption 0% Temperature Cool (12) Movement Core (50) Location -6/Proximity Caves Parts ------- > --- POWER (1) -------- (None) > --- PROPULSION (4) --- (None) > --- UTILITY (5) ------ 0b10 Decoder Chip [Looter] > --- WEAPON (3) ------- (None) > --- INVENTORY (5) ---- Medium Matter Pod (100) Improved Trap Scanner Experimental Sensor Array Heavy Laser Peak State ------------ > --- POWER ------------ Light Angular Momentum Engine > --- PROPULSION ------- Aluminum Leg Carbon-fiber Leg Carbon-fiber Leg Carbon-fiber Leg > --- UTILITY ---------- Small Storage Unit Medium Matter Pod Kinecellerator Reaction Control System Improved Medium Armor Plating > --- WEAPON ----------- Plasma Cannon Flak Cannon Heavy Rocket Launcher > --- INVENTORY -------- Improved Heat Sink Large Battery Experimental Sensor Array Target Analyzer Light Armor Plating Particle Gun [Rating: 40] Favorites ----------- Power Reinforced Ion Engine Engine Reinforced Ion Engine Power Core Light Nuclear Core Propulsion Carbon-fiber Leg Leg Carbon-fiber Leg Wheel Wheel Utility Small Storage Unit Device Reaction Control System Storage Small Storage Unit Processor Advanced Visual Processing Unit Protection Improved Medium Armor Plating Weapon Enhanced Autogun Energy Gun Medium Laser Energy Cannon Plasma Cannon Ballistic Gun Enhanced Autogun Ballistic Cannon Flak Cannon Launcher Heavy Rocket Launcher Build | -11 -10 -9 -9 -8 -8 -7 -7 -7 -6 ------- Run | Yrd Mat Mat Min Mat Sto Fac Low Dat Pro Slots Evolved 6 | . . 2 . 2 . 2 . . . Power . | . . . . . . . . . . Propulsion 2 | . . 1 . . . 1 . . . Utility 3 | . . . . 2 . 1 . . . Weapon 1 | . . 1 . . . . . . . Parts Attached 71 | 7 3 2 . 18 24 11 1 . 5 Power 8 | 1 1 . . 2 2 1 . . 1 Engine 6 | 1 1 . . 1 2 1 . . . Core 2 | . . . . 1 . . . . 1 Reactor . | . . . . . . . . . . Propulsion 20 | 2 2 1 . 6 6 2 . . 1 Treads . | . . . . . . . . . . Leg 14 | . . . . 6 6 2 . . . Wheel 6 | 2 2 1 . . . . . . 1 Hover . | . . . . . . . . . . Flight . | . . . . . . . . . . Utility 22 | 2 . 1 . 5 8 4 1 . 1 Device 12 | 1 . . . 2 6 2 1 . . Storage 3 | 1 . . . 1 1 . . . . Processor 3 | . . 1 . . . 1 . . 1 Hackware . | . . . . . . . . . . Protection 4 | . . . . 2 1 1 . . . Artifact . | . . . . . . . . . . Weapon 21 | 2 . . . 5 8 4 . . 2 Energy Gun 4 | 1 . . . 1 1 . . . 1 Energy Cannon 3 | . . . . 2 . 1 . . . Ballistic Gun 10 | 1 . . . 1 7 1 . . . Ballistic Cannon 2 | . . . . . . 1 . . 1 Launcher 2 | . . . . 1 . 1 . . . Special Weapon . | . . . . . . . . . . Impact Weapon . | . . . . . . . . . . Slashing Weapon . | . . . . . . . . . . Piercing Weapon . | . . . . . . . . . . Special Melee Weapon . | . . . . . . . . . . Unidentified Prototypes 1 | . . . . . 1 . . . . Parts Lost 42 | . 1 . 7 10 5 14 1 . 4 Power 6 | . 1 . 1 1 1 1 . . 1 Propulsion 13 | . . . 3 4 . 5 . . 1 Utility 10 | . . . 1 2 1 5 1 . . Weapon 13 | . . . 2 3 3 3 . . 2 Highest Loss Streak 9 | . 1 . 7 5 3 9 1 . 4 To Critical Strikes . | . . . . . . . . . . Average Backups 5 | 1 2 2 2 5 7 6 4 5 4 Power . | . . 1 1 . . . . 1 . Propulsion . | . 1 . . . . . . . . Utility 3 | . . 1 1 2 4 4 1 2 2 Weapon 1 | . . . . 1 1 1 2 2 1 Tool/Special . | . . . . . . . . . . Unused Backups 9 | . . . . 1 4 2 . . 2 Power 2 | . . . . 1 1 . . . . Propulsion 1 | . . . . . 1 . . . . Utility 5 | . . . . . 1 2 . . 2 Weapon 1 | . . . . . 1 . . . . Tool/Special . | . . . . . . . . . . Average Slot Usage (%) 72 | . 99 87 63 74 89 90 5 . 26 Engine 6 | . 13 11 8 5 8 6 . . . Leg 13 | . . . . 20 22 24 . . . Wheel 6 | . 28 33 23 . . . . . 5 Device 11 | . 14 8 . 9 19 15 5 . . Storage 9 | . 14 11 8 8 11 14 . . . Processor 1 | . . 2 7 . . 1 . . 5 Protection 2 | . . . . 7 2 3 . . . Energy Gun 3 | . 14 11 7 7 . . . . 4 Energy Cannon 2 | . . . . 9 1 5 . . . Ballistic Gun 9 | . 14 10 8 1 24 7 . . . Ballistic Cannon 1 | . . . . . . 3 . . 4 Launcher 1 | . . . . 1 . 3 . . . Peak Build Rating 40 | 9 9 10 10 24 35 40 5 2 19 Average Rating 20 | 5 8 9 6 18 29 34 4 2 13 On Entrance 8 | . 9 9 9 1 18 33 1 2 2 Naked Turns 267 | . . . 64 5 . 34 88 50 26 Heaviest Build 49 | 13 13 13 12 27 37 49 1 . 17 Greatest Support 55 | 32 32 30 30 37 45 55 3 3 16 Greatest Overweight (x) 3 | . . . 2 . 1 3 . . 1 Average Overweight (x) . | . . . . . . . . . . Largest Inventory Capacity 8 | 8 8 8 8 8 8 8 5 5 5 Average Capacity 7 | 6 8 8 7 7 8 7 5 5 5 Most Carried 8 | 4 4 3 4 8 8 8 5 5 5 Average Carried 5 | 1 2 2 2 5 7 6 4 5 4 Final Capacity 8 | 8 8 8 5 8 8 5 5 5 5 Final Carried 7 | 2 3 2 4 5 7 5 5 5 4 Class Distribution -------------------- 28% | Scavenger-Tank 28% | Mutant 20% | Scavenger-Mutant 15% | Scavenger-Gunner 5% | Derelict-Mutant Dominant Class ---------------- Mutant | -10/Materials Scavenger-Mutant | -9/Materials Scavenger-Mutant | -9/Mines Scavenger-Mutant | -8/Materials Scavenger-Gunner | -8/Storage Scavenger-Tank | -7/Factory Mutant | -7/Lower Caves Mutant | -7/Data Miner Derelict-Mutant | -6/Proximity Caves Resources | -11 -10 -9 -9 -8 -8 -7 -7 -7 -6 ----------- Run | Yrd Mat Mat Min Mat Sto Fac Low Dat Pro Matter Collected 2169 | 285 129 21 57 163 923 378 157 . 56 Remotely . | . . . . . . . . . . Salvage Created 3233 | 77 238 21 99 809 1329 595 . . 65 Parts 163 | 3 26 2 . 37 66 27 . . 2 Haulers Intercepted . | . . . . . . . . . . Recyclers Shooed 3 | . . . . 1 1 1 . . . Parts Field Recycled . | . . . . . . . . . . Retrieved Matter . | . . . . . . . . . . Parts Self-Destructed 9 | . . . . . . . . . 9 Prevented . | . . . . . . . . . . Kills | -11 -10 -9 -9 -8 -8 -7 -7 -7 -6 ------- Run | Yrd Mat Mat Min Mat Sto Fac Low Dat Pro Combat Hostiles Destroyed 64 | . 10 . 2 14 25 12 . . 1 Guns 40 | . 10 . 2 2 24 2 . . . Cannons 21 | . . . . 9 1 10 . . 1 Classes Destroyed 13 | 2 4 . . 2 3 2 . . . Worker 2 | . . . . . 1 1 . . . Builder 5 | . 1 . . 2 . 2 . . . Tunneler 1 | 1 . . . . . . . . . Recycler 4 | 1 . . . 1 1 1 . . . Operator 1 | . . . . . 1 . . . . Watcher 3 | . 1 1 . . . 1 . . . Swarmer 11 | . 8 . . . . 3 . . . Grunt 37 | . 2 . 2 11 17 5 . . . Brawler 4 | . . . . . 4 . . . . Duelist 1 | . . . . . . 1 . . . Sentry 8 | . . . . 2 4 1 . . 1 Hunter 1 | . . . . 1 . . . . . Programmer 2 | . . . . . . 2 . . . Best Kill Streak 12 | 2 4 1 2 5 12 4 . . 1 Combat Bots Only 6 | . 3 . 2 4 6 3 . . 1 Max Kills in Single Turn 2 | 1 1 1 1 1 2 1 . . 1 Gunslinging 1 | . . . . . 1 . . . . Exploded . | . . . . . . . . . . Melee . | . . . . . . . . . . Uniques/NPCs Destroyed . | . . . . . . . . . . Combat | -11 -10 -9 -9 -8 -8 -7 -7 -7 -6 -------- Run | Yrd Mat Mat Min Mat Sto Fac Low Dat Pro Hostile Shots Fired 675 | . 56 . 59 144 129 235 16 . 36 Missed 248 | . 15 . 17 51 41 99 11 . 14 Hits 427 | . 41 . 42 93 88 136 5 . 22 Melee 15 | . . . 7 . 2 6 . . . Projectile 412 | . 41 . 35 93 86 130 5 . 22 Critical Strikes 11 | . . . . 2 5 4 . . . Damage Taken 6035 | . 353 . 548 1429 1427 1821 84 . 373 Core 1417 | . 78 . 186 237 206 467 42 . 201 Absorbed by Shields 16 | . . . . . . 16 . . . Regen/Repaired (Parts) 87 | . . 87 . . . . . . . Core Remaining (%) 60 | 100 68 . 53 . 19 . . . . Volleys Fired 240 | 5 33 4 14 56 68 59 . . 1 Largest 3 | 2 2 2 2 3 3 3 . . 2 Hottest 185 | 70 70 70 70 185 108 140 . . 100 Shots Fired 527 | 10 64 7 28 107 180 129 . . 2 Gun 376 | 10 64 7 28 48 174 44 . . 1 Cannon 149 | . . . . 57 6 85 . . 1 Launcher 2 | . . . . 2 . . . . . Special . | . . . . . . . . . . Kinetic 311 | 5 33 4 14 2 174 78 . . 1 Thermal 213 | 5 31 3 14 103 6 51 . . . Explosive 2 | . . . . 2 . . . . . Electromagnetic 1 | . . . . . . . . . 1 Robot Hit Streak 13 | 5 7 4 7 8 12 13 . . 1 Robot Miss Streak 8 | 1 4 2 3 5 8 8 . . 2 Penetration Max . | . . . . . . . . . . Secondary Targets 9 | . 1 . . . 8 . . . . Max Gunslinging Chain 1 | . 1 . . . 1 . . . . Shots Hit Robots 330 | 7 29 4 19 74 118 78 . . 1 Core Hits 164 | 3 15 1 7 31 58 48 . . 1 Critical Kills 3 | . . . . 1 1 . . . 1 Critical Parts Destroyed 1 | . . . . . 1 . . . . Critical Strikes 6 | . . . 1 2 2 . . . 1 Burn 2 | . . . 1 1 . . . . . Meltdown 1 | . . . . 1 . . . . . Destroy 3 | . . . . . 2 . . . 1 Melee Attacks . | . . . . . . . . . . Impact . | . . . . . . . . . . Slashing . | . . . . . . . . . . Piercing . | . . . . . . . . . . Sneak Attacks . | . . . . . . . . . . Combat Hostiles . | . . . . . . . . . . Follow-up Attacks . | . . . . . . . . . . Damage Inflicted 6201 | 92 376 49 253 1417 2202 1771 . . 41 Guns 3656 | 92 376 49 248 430 2155 306 . . . Cannons 2373 | . . . . 932 45 1355 . . 41 Explosions 74 | . . . . 24 . 50 . . . Melee . | . . . . . . . . . . Ramming 98 | . . . 5 31 2 60 . . . Kinetic 3490 | 54 176 12 134 36 2155 882 . . 41 Thermal 2539 | 38 200 37 114 1326 45 779 . . . Explosive 74 | . . . . 24 . 50 . . . Electromagnetic . | . . . . . . . . . . Impact . | . . . . . . . . . . Slashing . | . . . . . . . . . . Piercing . | . . . . . . . . . . Highest Corruption 14 | . . . 14 . . . . . . Average Corruption 12 | . . . 12 . . . . . . Corruption Purged . | . . . . . . . . . . Corruption Blocked . | . . . . . . . . . . Effects 5 | . . . 5 . . . . . . Heat Flow Errors 4 | . . . 4 . . . . . . Misdirections 1 | . . . 1 . . . . . . Overload Shots . | . . . . . . . . . . Overflow Damage 29 | . . . . . . 29 . . . Projectiles 22 | . . . . . . 22 . . . Explosions 7 | . . . . . . 7 . . . Melee . | . . . . . . . . . . Knockbacks 16 | . . . . . . 16 . . . Impact 1 | . . . . . . 1 . . . Kinetic 14 | . . . . . . 14 . . . Secondary 1 | . . . . . . 1 . . . Self-Inflicted Damage 158 | . . . 2 . . 156 . . . Shots 2 | . . . . . . 2 . . . Rammed 3 | . . . 3 . . . . . . Targets Rammed 17 | . . . 3 8 2 4 . . . Kicked 14 | . . . . 8 2 4 . . . Crushed . | . . . . . . . . . . Highest Temperature 559 | 27 117 . 229 477 218 559 . . 23 Average Temperature 112 | 12 35 . 63 163 74 142 . . 13 Received Heat Transfer 1979 | . 54 . 148 684 711 262 24 . 96 Effects 21 | . . . . 11 . 10 . . . Shutdowns 5 | . . . . 3 . 2 . . . Energy Bleed 2 | . . . . 1 . 1 . . . Interference 8 | . . . . 6 . 2 . . . Matter Decay 2 | . . . . . . 2 . . . Short Circuit 2 | . . . . . . 2 . . . Damage (minor) 1 | . . . . 1 . . . . . Damage (core) 1 | . . . . . . 1 . . . Siege Activations . | . . . . . . . . . . Martial Activations . | . . . . . . . . . . Shielding Activations . | . . . . . . . . . . Robots Disrupted . | . . . . . . . . . . Combat Hostiles . | . . . . . . . . . . Robots Corrupted . | . . . . . . . . . . Combat Hostiles . | . . . . . . . . . . Parts Fried . | . . . . . . . . . . Impact Corruptions . | . . . . . . . . . . Robots Melted 3 | . . . . 3 . . . . . Combat Hostiles 3 | . . . . 3 . . . . . Parts Melted 9 | . . . 2 6 . 1 . . . Heat Transferred 5520 | 111 592 111 407 2775 74 1450 . . . Parts Sabotaged . | . . . . . . . . . . Parts Stolen . | . . . . . . . . . . Parts Stripped . | . . . . . . . . . . Power Chain Reactions . | . . . . . . . . . . Alert | -11 -10 -9 -9 -8 -8 -7 -7 -7 -6 ------- Run | Yrd Mat Mat Min Mat Sto Fac Low Dat Pro Maximum Alert Level 2 | . . . . . 2 . . . . Low Security (%) 89 | 100 100 100 100 100 62 100 . . . Level 1 7 | . . . . . 26 . . . . Level 2 3 | . . . . . 10 . . . . Level 3 . | . . . . . . . . . . Level 4 . | . . . . . . . . . . Level 5 . | . . . . . . . . . . High Security . | . . . . . . . . . . Max Security . | . . . . . . . . . . Peak Influence 456 | 5 142 65 41 156 456 157 . . . Initial 149 | . . 46 21 5 . 149 . . . Average 84 | 1 81 12 9 89 148 65 . . . Influence Increases 2400 | 10 282 99 65 412 825 507 90 . 110 Destroy 0b10 Robot/C 1420 | . 200 . 40 280 580 240 . . 80 Destroy 0b10 Robot/NC 85 | 10 10 5 . 15 20 25 . . . Destroy Leader 326 | . 42 2 10 60 140 62 . . 10 Allied During Kill 22 | . . . . . 17 . . . 5 Successful Hack 26 | . . 2 . . 19 5 . . . Disable Machine 105 | . . . . 15 . 90 . . . Destroy Structure 56 | . . . . 12 4 40 . . . Partial Spotted 15 | . . 15 . . . . . . . Lose Combat Pursuer 345 | . 30 75 15 30 45 45 90 . 15 Influence Decreases 2400 | 10 170 156 105 427 496 727 153 46 110 Entered New Map 377 | . . 66 34 10 . 180 41 46 . Time Decay 1398 | 10 160 90 71 237 236 417 102 . 75 Lost Part 295 | . 10 . . 60 50 130 10 . 35 Lost Ally 60 | . . . . . 60 . . . . Purge Threat 270 | . . . . 120 150 . . . . Squads Dispatched 15 | . 2 . . 2 5 6 . . . Investigation 2 | . 1 . . 1 . . . . . Extermination 2 | . . . . . . 2 . . . Reinforcement 6 | . 1 . . 1 3 1 . . . Assault 2 | . . . . . 2 . . . . Garrison 3 | . . . . . . 3 . . . Intercept . | . . . . . . . . . . Searches Triggered . | . . . . . . . . . . Construction Impeded 1 | . . . . . . 1 . . . Haulers Reinforced . | . . . . . . . . . . Active Scanning Responses . | . . . . . . . . . . Cargo Convoy Interrupts . | . . . . . . . . . . Stealth | -11 -10 -9 -9 -8 -8 -7 -7 -7 -6 --------- Run | Yrd Mat Mat Min Mat Sto Fac Low Dat Pro Distress Signals 10 | . 2 2 . 4 . 2 . . . Communications Jammed . | . . . . . . . . . . Distress Signals . | . . . . . . . . . . Times Spotted 148 | . 15 7 31 23 33 25 7 . 7 Peak Tracking Total 20 | . 5 7 20 7 6 5 7 . 3 Tactical Retreats 15 | . 2 1 4 2 3 1 1 . 1 Traps | -11 -10 -9 -9 -8 -8 -7 -7 -7 -6 ------- Run | Yrd Mat Mat Min Mat Sto Fac Low Dat Pro Traps Triggered 1 | . . . . 1 . . . . . Indirectly . | . . . . . . . . . . Trap Hack Attempts . | . . . . . . . . . . Triggered . | . . . . . . . . . . Disarmed . | . . . . . . . . . . Reprogrammed . | . . . . . . . . . . Reused . | . . . . . . . . . . Traps Extracted . | . . . . . . . . . . Installed . | . . . . . . . . . . Triggered . | . . . . . . . . . . Machines | -11 -10 -9 -9 -8 -8 -7 -7 -7 -6 ---------- Run | Yrd Mat Mat Min Mat Sto Fac Low Dat Pro Machines Disabled 7 | . . . . 1 . 6 . . . Max in Single Turn 2 | . . . . 1 . 2 . . . Machines Repaired . | . . . . . . . . . . Machines Dismantled . | . . . . . . . . . . Machines Sabotaged . | . . . . . . . . . . Overloaded Fab Kills . | . . . . . . . . . . Hacking | -11 -10 -9 -9 -8 -8 -7 -7 -7 -6 --------- Run | Yrd Mat Mat Min Mat Sto Fac Low Dat Pro Machines Accessed 19 | . 1 1 . 1 8 3 1 4 . Terminals 13 | . 1 . . 1 7 3 1 . . Fabricators . | . . . . . . . . . . Repair Stations 2 | . . 1 . . 1 . . . . Recycling Units . | . . . . . . . . . . Scanalyzers . | . . . . . . . . . . Garrison Access . | . . . . . . . . . . Total Hacks 55 | . 2 2 . 1 15 3 3 29 . Successful 45 | . 1 2 . 1 7 2 3 29 . Failed 10 | . 1 . . . 8 1 . . . Catastrophic 1 | . 1 . . . . . . . . Database Lockouts . | . . . . . . . . . . Manual . | . . . . . . . . . . Terminals 22 | . 2 . . 1 13 3 3 . . Fabricators . | . . . . . . . . . . Repair Stations 4 | . . 2 . . 2 . . . . Recycling Units . | . . . . . . . . . . Scanalyzers . | . . . . . . . . . . Garrison Access . | . . . . . . . . . . Terminal Hacks 42 | . 1 . . 1 6 2 3 29 . Record 14 | . . . . . . . 3 11 . Part Schematic 11 | . . . . . . . . 11 . Robot Schematic 4 | . . . . . . . . 4 . Prototype ID Bank 4 | . 1 . . . . . . 3 . Open Door 4 | . . . . . 4 . . . . Open DSF 1 | . . . . . . 1 . . . Unreport Threat 2 | . . . . 1 1 . . . . Locate Traps 2 | . . . . . 1 1 . . . Fabricator Hacks . | . . . . . . . . . . Repair Station Hacks 3 | . . 2 . . 1 . . . . Scan Component 2 | . . 1 . . 1 . . . . Repair 1 | . . 1 . . . . . . . Recycling Unit Hacks . | . . . . . . . . . . Scanalyzer . | . . . . . . . . . . Garrison Access Hacks . | . . . . . . . . . . Unauthorized Hacks . | . . . . . . . . . . Terminals . | . . . . . . . . . . Fabricators . | . . . . . . . . . . Repair Stations . | . . . . . . . . . . Recycling Units . | . . . . . . . . . . Scanalyzers . | . . . . . . . . . . Garrison Access . | . . . . . . . . . . Data Cores Recovered . | . . . . . . . . . . Used . | . . . . . . . . . . Hacking Detections 7 | . 1 . . 1 4 . 1 . . Full Trace Events 2 | . 1 . . . . . 1 . . Feedback Events . | . . . . . . . . . . Feedback Blocked . | . . . . . . . . . . Robot Schematics Acquired 4 | . . . . . . . . 4 . Robots Built . | . . . . . . . . . . Authchips . | . . . . . . . . . . Time . | . . . . . . . . . . Total Robot Build Rating . | . . . . . . . . . . Part Schematics Acquired 11 | . . . . . . . . 11 . Parts Built . | . . . . . . . . . . Authchips . | . . . . . . . . . . Time . | . . . . . . . . . . Total Part Build Rating . | . . . . . . . . . . Parts Repaired 1 | . . 1 . . . . . . . Time 26 | . . 26 . . . . . . . Parts Recycled . | . . . . . . . . . . Recycled Matter . | . . . . . . . . . . Retrieved Matter . | . . . . . . . . . . Retrieved Components . | . . . . . . . . . . Parts Scanalyzed . | . . . . . . . . . . Part Schematics Acquired . | . . . . . . . . . . Parts Damaged . | . . . . . . . . . . Bothacking | -11 -10 -9 -9 -8 -8 -7 -7 -7 -6 ------------ Run | Yrd Mat Mat Min Mat Sto Fac Low Dat Pro Used RIF Installer . | . . . . . . . . . . Robots Hacked . | . . . . . . . . . . Non-combat . | . . . . . . . . . . Combat . | . . . . . . . . . . Robot Hacks Applied . | . . . . . . . . . . Relay Couplers Released . | . . . . . . . . . . Fabnet Peak Effective % . | . . . . . . . . . . Robots Rewired . | . . . . . . . . . . Allies Hacked . | . . . . . . . . . . Hacks Repelled . | . . . . . . . . . . Allies | -11 -10 -9 -9 -8 -8 -7 -7 -7 -6 -------- Run | Yrd Mat Mat Min Mat Sto Fac Low Dat Pro Total Allies 3 | . . . . . 2 . . . 1 Largest Group 2 | . . . . . 2 . . . 1 Highest-Rated Group 96 | . . . . . 62 . . . 96 Highest-Rated Ally 96 | . . . . . 31 . . . 96 Total Orders 4 | . . . . . 4 . . . . EXPLORE 2 | . . . . . 2 . . . . RETURN 2 | . . . . . 2 . . . . Ally Attacks 28 | . . . . . 15 . . . 13 Total Damage 645 | . . . . . 255 . . . 390 Kills 8 | . . . . . 5 . . . 3 Allies Corrupted . | . . . . . . . . . . Allies Melted . | . . . . . . . . . . Intel | -11 -10 -9 -9 -8 -8 -7 -7 -7 -6 ------- Run | Yrd Mat Mat Min Mat Sto Fac Low Dat Pro Active Infowar (turns) 1573 | 28 352 343 177 . . 353 . . 320 Optics 492 | . . 91 177 . . 224 . . . Sensors 129 | . . . . . . 129 . . . Terrain 632 | 28 352 252 . . . . . . . Decoding 320 | . . . . . . . . . 320 Robot Analysis Total . | . . . . . . . . . . Derelict Logs Recovered 1 | . . . 1 . . . . . . Drone Launches 11 | . . . . . 11 . . . . Drone Recoveries 7 | . . . . . 7 . . . . Exploration | -11 -10 -9 -9 -8 -8 -7 -7 -7 -6 ------------- Run | Yrd Mat Mat Min Mat Sto Fac Low Dat Pro Turns Passed 4856 | 70 352 343 270 602 1095 1194 450 50 430 Spaces Moved 3588 | 40 271 141 315 308 398 684 875 96 460 Core 1351 | 1 . . 127 7 . 87 875 96 158 Treads . | . . . . . . . . . . Legs 1296 | . . . . 301 398 597 . . . Wheels 941 | 39 271 141 188 . . . . . 302 Hover . | . . . . . . . . . . Flight . | . . . . . . . . . . Fastest Speed 50 | 50 80 80 50 50 120 50 50 50 50 Average Speed 89 | 98 88 80 69 122 137 114 50 50 90 Slowest Speed 330 | 100 100 80 150 130 190 330 50 50 115 Overloaded Moves . | . . . . . . . . . . Propulsion Burnouts . | . . . . . . . . . . Robots Hopped . | . . . . . . . . . . Potential Cave-ins . | . . . . . . . . . . Cave-ins Triggered . | . . . . . . . . . . Exploration Rate (%) 45 | 3 45 19 69 26 56 21 92 75 49 Regions Visited 9 Branch Regions 5 Pre-discovered Areas 1 | . . . . . . . . 1 . Known Exits Taken . | . . . . . . . . . . Unknown Exits Taken 9 | 1 1 1 1 1 1 1 1 1 . Scrap Searched 8 | . . . 1 . . . 4 . 3 Spaces Dug . | . . . . . . . . . . Terrain Destroyed 51 | . . . . 10 . 41 . . . Melee . | . . . . . . . . . . Projectile 2 | . . . . 2 . . . . . AOE 49 | . . . . 8 . 41 . . . Terrain Rammed . | . . . . . . . . . . Walls Destroyed . | . . . . . . . . . . Machines Disabled . | . . . . . . . . . . Actions | -11 -10 -9 -9 -8 -8 -7 -7 -7 -6 --------- Run | Yrd Mat Mat Min Mat Sto Fac Low Dat Pro Total 4830 | 60 319 364 338 433 858 1000 888 97 473 Wait 793 | . 7 214 5 19 319 218 6 2 3 Move 3579 | 39 270 140 314 307 397 683 874 95 460 Hop . | . . . . . . . . . . Pick Up 85 | 9 4 2 1 21 28 12 4 . 4 Fast Attach . | . . . . . . . . . . Attach 60 | 7 1 2 . 17 14 13 1 . 5 Detach 6 | . . . 1 . 1 4 . . . Swap 18 | . 2 1 . 2 12 1 . . . Drop 32 | . 2 1 . 3 17 6 3 . . Fire 240 | 5 33 4 14 56 68 59 . . 1 Melee . | . . . . . . . . . . Ram 3 | . . . 3 . . . . . . Kick 14 | . . . . 8 2 4 . . . Crush . | . . . . . . . . . . Escape Stasis . | . . . . . . . . . . Rewire . | . . . . . . . . . . Trap . | . . . . . . . . . . Miscellaneous . | . . . . . . . . . . Route ------- -11/Scrapyard -10/Materials -9/Materials -9/Mines -8/Materials -8/Storage -7/Factory -7/Lower Caves (discovered 2 exits: [*Low] / *Dat) -7/Data Miner -6/Proximity Caves History --------- Turn | Location | Event 2 | -11/Scrapyard | Met Revision 17 21 | -11/Scrapyard | Discovered new exit (range 16) 71 | -11/Scrapyard | Entered Materials 313 | -10/Materials | Build established: Mutant 336 | -10/Materials | Discovered new exit (range 14) 423 | -10/Materials | Entered another Materials area 423 | -9/Materials | Evolved 2 slots: Propulsion x1, Weapon x1 463 | -9/Materials | Repaired Assault Rifle 717 | -9/Materials | Build established: Scavenger-Mutant 754 | -9/Materials | Discovered new exit (range 8) 766 | -9/Materials | Entered Mines 848 | -9/Mines | Found a damaged Exp. Sensor Array with a note attached 850 | -9/Mines | Found Prototype Device 862 | -9/Mines | Learned Materials terminal intel 887 | -9/Mines | Assembled infested the area 965 | -9/Mines | System corruption reached 10% 997 | -9/Mines | Lost 7 parts (1p3n1u2w) 1011 | -9/Mines | Discovered new exit (range 16) 1036 | -9/Mines | Entered Materials 1036 | -8/Materials | Evolved 2 slots: Utility x2 1037 | -8/Materials | Loaded intel: 12 terminal locations 1406 | -8/Materials | Lost 3 parts (1n1u1w) 1627 | -8/Materials | Discovered new exit (range 7) 1638 | -8/Materials | Entered Storage 1647 | -8/Storage | Lost 5 parts (1p3n1w) 1933 | -8/Storage | Build established: Scavenger-Gunner 2161 | -8/Storage | Core integrity fell below 50% 2277 | -8/Storage | Lost 3 parts (1p2w) 2299 | -8/Storage | Met a pair of Derelict thieves 2623 | -8/Storage | Core integrity fell below 20% 2642 | -8/Storage | Build established: Scavenger-Tank 2676 | -8/Storage | Discovered new exit (range 16) 2733 | -8/Storage | Entered Factory 2733 | -7/Factory | Evolved 2 slots: Propulsion x1, Utility x1 3479 | -7/Factory | Garrison activated, responded to threat 3741 | -7/Factory | Garrison activated, responded to threat 3834 | -7/Factory | Lost 3 parts (1n1u1w) 3874 | -7/Factory | Core integrity fell below 50% 3904 | -7/Factory | Discovered new exit (range 16) 3924 | -7/Factory | Lost 9 parts (3n4u2w) 3927 | -7/Factory | Entered Lower Caves 4135 | -7/Lower Caves | Encountered a Warlord checkpoint 4162 | -7/Lower Caves | Build established: Mutant 4283 | -7/Lower Caves | Attracted the attention of an 0b10 base 4363 | -7/Lower Caves | Attracted the attention of an 0b10 checkpoint 4374 | -7/Lower Caves | A Derelict revealed a hidden shortcut to meet someone special 4374 | -7/Lower Caves | Discovered new exit (range 6) 4377 | -7/Lower Caves | Entered Data Miner 4377 | -7/Data Miner | Discovered new exit (range 6) 4389 | -7/Data Miner | Met Data Miner 4407 | -7/Data Miner | Learned location of Section 7 (-2) 4407 | -7/Data Miner | Acquired the access code to Warlord's prototype stash 4416 | -7/Data Miner | Received God Mode back door access code from Data Miner 4427 | -7/Data Miner | Entered Proximity Caves 4432 | -6/Proximity Caves | Core integrity fell below 20% 4471 | -6/Proximity Caves | Escorted by Enhanced Grunt 4673 | -6/Proximity Caves | Spotted B-75 Beast 4741 | -6/Proximity Caves | Attracted the attention of an 0b10 checkpoint 4834 | -6/Proximity Caves | Lost 4 parts (1p1n2w) 4857 | -6/Proximity Caves | Destroyed by B-75 Beast with Heavy Plasma Cannon Last Messages --------------- Acquired 10 matter. Acquired Com. Wheel. Acquired 10 matter. Enhanced Grunt: "Protecting LRC-V3." Acquired 0b10 Decoder Chip [Looter]. Acquired 10 matter. Acquired Hpw. Shock Rifle. Acquired 20 matter. Acquired Imp. Trap Scanner. Enhanced Grunt destroyed. Y-54 Guardian: "INTERCEPTING UNREGISTERED DERELICT." Y-54 Guardian suffers critical hit (Destroy). Y-54 Guardian destroyed. Slug Cannon destroyed. Hpw. Shock Rifle destroyed. Lgt. Nuclear Core destroyed. Com. Wheel destroyed. Searching scrap... Found Weapon Shielding. Found 64 Matter. Map ----- +----------------------------------------------------+ | ?????????????????????????????????????????????????? | | ?????????????????????????????????????????????????? | | ?????????????????????????????????????????????????? | | ?????????????????????????????????????????????????? | | ?????????????????????????????????????????????????? | | ?????????????????????????????????????????????????? | | ?????????????????????????????????????????????????? | | ?????????????????????????????????????????????????? | | ?????????????????????????????????????????????????? | | ?????????????????????????????????????????????????? | | ?????????????????????????????????????????????????? | | ?????????????????????????????????????????????????? | | ?????????????????????????????????????????????????? | | ####?????????????????????????????????????????????? | | #????????????????????????????????????????????? | | ?????????????????????????#??????????????????? | | ##????????????????????? #???????? ????????? | | ????????????????????# #???????? ??????? | | # #????????????????????# #????#### ??????? | | # #???????????????####?# #???# ??????? | | #???????????????# ### #### ???????? | | #########???????? ## ???????? | | #????????# ## ???????? | | #????????# #???????? | | # ##### #????????# #???????? | | # ##???# ##########!@ ##??????? | | ###????# % ##?????? | | #???????# ### #?????? | | # #????????############# #?# #?????? | | # ?????????????????????# ! ### #?????? | | #??#???????????????????# *% ##????? | | ? ##??????????????????# % ##???? | | ## #??????????????# ## ## #???? | | ????????????#BB##### ### ##???? | | ????????????#BB#???# ### ###????? | | ##????????????? #???? #??# ##??????? | | ????????????????? #??? ??#### ##### #???????? | | ?????????????? #??## ?????####### ##??????? | | #????????????? #???## ???##### #### #??????? | | ???????????# #???## #???# # # #?????? | | ?#??????????# ##### ##???# # #?????? | | ##??????????## ##????# ## #?????? | | ####??????????## ###????# ## # #?????? | | ########??????# #????# ## ## #?????? | | #??????# #????# ## ## ##?????? | | #??????# #?##" ###### ## ### ##??????? | | ### #????### ###"" ## ## #?###???????? | | #### #???## "" """ ## ##??????????? | | #### #??## " #### ##?????????? | | ### #### " #?# #?????????? | +----------------------------------------------------+ Best States ------------- Heat Dissipation 59 Energy Generation 18 Energy Capacity 265 Matter Stores 400 Matter Capacity 400 Sight Range 20 Robot Scan Range 15 Terrain Scan Range 16 Terrain Scan Density 10 Armor Coverage 300 Evasion (%) 63 Kinecelleration 30 Item Schematics ----------------- Combat Drone Bay | -7/Data Miner | Free Lgt. Regenerative Plating | -7/Data Miner | Free Cld. Aerolev Unit | -7/Data Miner | Free Thermal Defense Suite | -7/Data Miner | Free Imp. Lightning Gun | -7/Data Miner | Free Linear Gravjet | -7/Data Miner | Free Imp. Component Analysis Suite | -7/Data Miner | Free Wave Gun | -7/Data Miner | Free KE Penetrator | -7/Data Miner | Free Lgt. Antimatter Reactor | -7/Data Miner | Free Phase Gun | -7/Data Miner | Free Robot Schematics ------------------ R-10 Processor | -7/Data Miner | Free G-47 Trooper | -7/Data Miner | Free G-50 Soldier | -7/Data Miner | Free S-27 Virus | -7/Data Miner | Free Fabricated ------------ Nothing Repaired ---------- Assault Rifle | 13% | -9/Materials Alien Tech Used ----------------- None Achievements -------------- I Survived The Infestation Librarian Slippery One The Oracle Challenges ------------ None Game ------ Seed NullFieldthrustSpear Manual? 0 Play Time 01:05:06 Cumulative 6.8 hours Start 2025.06.29 @ 12:39:29 End 2025.06.29 @ 15:01:19 Sessions 1 Manual Loads 0 Difficulty Rogue Special Mode None Game No. 5 Rogue 5 Adventurer 0 Explorer 0 Win Type - Total 0 Types 0/0/0/0/0/0/0/0/0/0 Lore% 3 Gallery% 12 Achievement% 17 Wizard Run 0 Options --------- Layout 2 ASCII 0 Keyboard 0 Movement Numpad Keybinds 0 Fullscreen 0 Font 20/X11 Map View 64x51 Zoom Use 0% Tactical HUD 0 Map Filters NONE Filters NONE Steam 0 RUN: 4cfced0e-d2e4-4c08-b87a-723d2a099265